[Event "FIDE Grand Swiss 2023"]
[Site "Villa Marina, Douglas, Isle of Man"]
[Date "2023.11.03"]
[Round "9.42"]
[White "Ponomariov, Ruslan"]
[Black "Gupta, Abhijeet"]
[Result "1-0"]
[WhiteElo "2641"]
[BlackElo "2609"]
[EventDate "2023.10.25"]
[ECO "B67"]
[PlyCount "155"]
[BlackFideId "5010608"]
[TimeControl "40/100 + 20/50 + 15 + 30s/move"]
[WhiteFideId "14103320"]

1.e4 {[%clk 01:40:57][%emt 00:00:01]} 1...c5 {[%clk 01:40:43][%emt 00:00:18]} 
2.Nf3 {[%clk 01:41:10][%emt 00:00:16]} 2...d6 {[%clk 01:41:09][%emt 00:00:05]} 
3.d4 {[%clk 01:41:01][%emt 00:00:38]} 3...cxd4 {[%clk 01:41:35][%emt 00:00:05]} 
4.Nxd4 {[%clk 01:41:24][%emt 00:00:07]} 4...Nf6 {[%clk 01:42:00][%emt 00:00:05]} 
5.Nc3 {[%clk 01:41:46][%emt 00:00:08]} 5...Nc6 {[%clk 01:41:53][%emt 00:00:37]} 
6.Bg5 {[%clk 01:41:34][%emt 00:00:41]} 6...Bd7 {[%clk 01:42:14][%emt 00:00:10]} 
7.Qd2 {[%clk 01:41:14][%emt 00:00:50]} 7...a6 {[%clk 01:42:27][%emt 00:00:17]} 
8.O-O-O {[%clk 01:39:16][%emt 00:02:27]} 8...e6 {[%clk 01:42:42][%emt 00:00:16]} 
9.Kb1 {[%clk 01:38:27][%emt 00:01:18]} 9...Nxd4 {[%clk 01:38:21][%emt 00:04:52]} 
10.Qxd4 {[%clk 01:38:39][%emt 00:00:18]} 10...Be7 {[%clk 01:38:44][%emt
00:00:07]} 11.f3 {[%clk 01:37:29][%emt 00:01:40]} 11...Qc7 {[%clk 01:38:23][%emt
00:00:51]} 12.Qd2 {[%clk 01:36:24][%emt 00:01:33]} 12...b5 {[%clk 01:37:50][%emt
00:01:05]} 13.h4 {[%clk 01:34:57][%emt 00:01:57]} 13...h6 {[%clk 01:37:17][%emt
00:01:04]} 14.Be3 {[%clk 01:35:01][%emt 00:00:25]} 14...h5 {[%clk 01:37:39][%emt
00:00:09]} 15.Bd3 {[%clk 01:31:33][%emt 00:03:56]} 15...Rb8 {[%clk
01:35:01][%emt 00:03:09]} 16.Bg5 {[%clk 01:25:53][%emt 00:06:10]} 16...a5 
{[%clk 01:31:20][%emt 00:04:11]} 17.Ne2 {[%clk 01:24:29][%emt 00:01:54]} 
17...b4 {[%clk 01:28:26][%emt 00:03:24]} 18.c4 {[%clk 01:21:18][%emt 00:03:41]} 
18...bxc3 {[%clk 01:27:58][%emt 00:00:59]} 19.Nxc3 {[%clk 01:19:44][%emt
00:02:03]} 19...Qb7 {[%clk 01:25:10][%emt 00:03:17]} 20.a4 {[%clk 01:12:32][%emt
00:07:43]} 20...O-O {[%clk 01:22:59][%emt 00:02:41]} 21.Nb5 {[%clk
01:10:46][%emt 00:02:16]} 21...d5 {[%clk 01:16:15][%emt 00:07:14]} 22.e5 {[%clk
00:49:57][%emt 00:21:19]} 22...Bxb5 {[%clk 01:16:25][%emt 00:00:21]} 23.Bxb5 
{[%clk 00:48:11][%emt 00:02:15]} 23...Bb4 {[%clk 01:03:16][%emt 00:13:39]} 
24.Qe2 {[%clk 00:46:54][%emt 00:01:47]} 24...Ne8 {[%clk 00:59:28][%emt
00:04:19]} 25.Rc1 {[%clk 00:44:37][%emt 00:02:46]} 25...Nc7 {[%clk
00:57:02][%emt 00:02:56]} 26.Bc6 {[%clk 00:42:24][%emt 00:02:43]} 26...Qb6 
{[%clk 00:55:50][%emt 00:01:42]} 27.Rc2 {[%clk 00:36:29][%emt 00:06:25]} 
27...d4 {[%clk 00:53:23][%emt 00:02:56]} 28.Ka1 {[%clk 00:28:59][%emt 00:08:00]} 
28...Bc5 {[%clk 00:37:37][%emt 00:16:17]} 29.Be4 {[%clk 00:27:44][%emt
00:01:45]} 29...Na6 {[%clk 00:37:18][%emt 00:00:50]} 30.Rhc1 {[%clk
00:26:37][%emt 00:01:36]} 30...d3 {[%clk 00:36:48][%emt 00:01:00]} 31.Bxd3 
{[%clk 00:25:59][%emt 00:01:08]} 31...Nb4 {[%clk 00:35:54][%emt 00:01:25]} 
32.Bh7+ {[%clk 00:26:14][%emt 00:00:14]} 32...Kxh7 {[%clk 00:35:22][%emt
00:01:02]} 33.Rxc5 {[%clk 00:26:40][%emt 00:00:04]} 33...Kg8 {[%clk
00:34:42][%emt 00:01:10]} 34.Be7 {[%clk 00:21:51][%emt 00:05:19]} 34...Rfe8 
{[%clk 00:21:54][%emt 00:13:19]} 35.Rb5 {[%clk 00:17:01][%emt 00:05:19]} 
35...Rbc8 {[%clk 00:22:04][%emt 00:00:20]} 36.Qe1 {[%clk 00:14:41][%emt
00:02:50]} 36...Rxc1+ {[%clk 00:18:05][%emt 00:04:29]} 37.Qxc1 {[%clk
00:14:25][%emt 00:00:46]} 37...Qd4 {[%clk 00:18:28][%emt 00:00:07]} 38.Bxb4 
{[%clk 00:13:18][%emt 00:01:37]} 38...axb4 {[%clk 00:18:55][%emt 00:00:04]} 
39.Ka2 {[%clk 00:10:17][%emt 00:03:30]} 39...Ra8 {[%clk 00:17:32][%emt
00:01:53]} 40.a5 {[%clk 00:09:15][%emt 00:01:32]} 40...Rd8 {[%clk 00:07:54][%emt
00:10:08]} 41.Qc6 {[%clk 00:01:26][%emt 00:08:19]} 41...Qxh4 {[%clk
00:06:05][%emt 00:02:20]} 42.a6 {[%clk 00:48:11][%emt 00:03:44]} 42...Qd4 
{[%clk 00:56:26][%emt 00:00:09]} 43.Qe4 {[%clk 00:46:29][%emt 00:02:11]} 
43...Qa7 {[%clk 00:54:47][%emt 00:02:09]} 44.Qb7 {[%clk 00:45:17][%emt
00:01:43]} 44...Qd4 {[%clk 00:55:13][%emt 00:00:04]} 45.Rxb4 {[%clk
00:43:33][%emt 00:02:14]} 45...Qxe5 {[%clk 00:54:46][%emt 00:00:57]} 46.Qb5 
{[%clk 00:35:36][%emt 00:08:26]} 46...Qe3 {[%clk 00:51:54][%emt 00:03:22]} 
47.Qb6 {[%clk 00:33:39][%emt 00:02:28]} 47...Qd3 {[%clk 00:52:19][%emt
00:00:05]} 48.a7 {[%clk 00:32:58][%emt 00:01:11]} 48...Qd5+ {[%clk
00:52:41][%emt 00:00:08]} 49.Rb3 {[%clk 00:30:27][%emt 00:03:00]} 49...Ra8 
{[%clk 00:51:12][%emt 00:01:59]} 50.Qb7 {[%clk 00:27:47][%emt 00:03:11]} 
50...Qa5+ {[%clk 00:51:34][%emt 00:00:08]} 51.Ra3 {[%clk 00:28:12][%emt
00:00:05]} 51...Qd8 {[%clk 00:51:46][%emt 00:00:17]} 52.Ra6 {[%clk
00:18:58][%emt 00:09:45]} 52...g6 {[%clk 00:48:19][%emt 00:03:57]} 53.Ka3 
{[%clk 00:17:12][%emt 00:02:16]} 53...Kg7 {[%clk 00:46:55][%emt 00:01:54]} 
54.b3 {[%clk 00:16:24][%emt 00:01:18]} 54...h4 {[%clk 00:46:17][%emt 00:01:08]} 
55.Qb4 {[%clk 00:14:15][%emt 00:02:38]} 55...Qf6 {[%clk 00:38:51][%emt
00:07:57]} 56.Ka4 {[%clk 00:13:19][%emt 00:01:26]} 56...h3 {[%clk 00:34:10][%emt
00:05:11]} 57.gxh3 {[%clk 00:12:52][%emt 00:00:56]} 57...Qxf3 {[%clk
00:34:32][%emt 00:00:08]} 58.Qd4+ {[%clk 00:12:37][%emt 00:00:45]} 58...Kh7 
{[%clk 00:34:21][%emt 00:00:42]} 59.Rd6 {[%clk 00:08:34][%emt 00:04:32]} 
59...e5 {[%clk 00:31:49][%emt 00:03:04]} 60.Qb6 {[%clk 00:07:25][%emt 00:01:39]} 
60...Qf4+ {[%clk 00:28:23][%emt 00:03:55]} 61.b4 {[%clk 00:06:15][%emt
00:01:40]} 61...Qf1 {[%clk 00:24:52][%emt 00:04:01]} 62.Rd7 {[%clk
00:05:23][%emt 00:01:22]} 62...Qa1+ {[%clk 00:22:08][%emt 00:03:14]} 63.Kb5 
{[%clk 00:05:29][%emt 00:00:24]} 63...Qf1+ {[%clk 00:22:33][%emt 00:00:05]} 
64.Kc5 {[%clk 00:15:04][%emt 00:05:56]} 64...Rc8+ {[%clk 00:10:11][%emt
00:27:51]} 65.Rc7 {[%clk 00:15:10][%emt 00:00:23]} 65...Qf2+ {[%clk
00:02:49][%emt 00:07:52]} 66.Kc6 {[%clk 00:13:41][%emt 00:01:59]} 66...Qf3+ 
{[%clk 00:03:14][%emt 00:00:06]} 67.Kd7 {[%clk 00:11:44][%emt 00:02:27]} 
67...Rf8 {[%clk 00:02:22][%emt 00:01:21]} 68.Qc5 {[%clk 00:10:16][%emt
00:01:58]} 68...Qxh3+ {[%clk 00:01:36][%emt 00:01:17]} 69.Kc6 {[%clk
00:10:36][%emt 00:00:10]} 69...Qf3+ {[%clk 00:02:00][%emt 00:00:06]} 70.Kb6 
{[%clk 00:10:53][%emt 00:00:13]} 70...Qa8 {[%clk 00:01:05][%emt 00:01:25]} 
71.Qxe5 {[%clk 00:10:11][%emt 00:01:11]} 71...Kg8 {[%clk 00:01:27][%emt
00:00:09]} 72.Qf6 {[%clk 00:08:48][%emt 00:01:53]} 72...Qe4 {[%clk
00:01:30][%emt 00:00:27]} 73.b5 {[%clk 00:08:48][%emt 00:00:30]} 73...Qe3+ 
{[%clk 00:00:48][%emt 00:01:12]} 74.Kb7 {[%clk 00:09:09][%emt 00:00:09]} 
74...Qe8 {[%clk 00:01:00][%emt 00:00:18]} 75.Qc6 {[%clk 00:08:12][%emt
00:01:27]} 75...Qa8+ {[%clk 00:01:13][%emt 00:00:17]} 76.Ka6 {[%clk
00:08:25][%emt 00:00:17]} 76...Qd8 {[%clk 00:01:40][%emt 00:00:03]} 77.b6 
{[%clk 00:07:13][%emt 00:01:42]} 77...Re8 {[%clk 00:01:42][%emt 00:00:28]} 
78.Qd7 {[%clk 00:06:07][%emt 00:01:35]} 1-0

[Event "FIDE Grand Swiss 2023"]
[Site "Villa Marina, Douglas, Isle of Man"]
[Date "2023.11.03"]
[Round "9.43"]
[White "Maurizzi, Marc`andria"]
[Black "Sadhwani, Raunak"]
[Result "0-1"]
[WhiteElo "2555"]
[BlackElo "2641"]
[EventDate "2023.10.25"]
[ECO "C88"]
[PlyCount "78"]
[BlackClock "00:25:24"]
[BlackFideId "35093487"]
[TimeControl "40/100 + 20/50 + 15 + 30s/move"]
[WhiteClock "00:06:54"]
[WhiteFideId "36083534"]

1.e4 {[%clk 01:40:54][%emt 00:00:05]} 1...e5 {[%clk 01:40:57][%emt 00:00:04]} 
2.Nf3 {[%clk 01:41:22][%emt 00:00:02]} 2...Nc6 {[%clk 01:41:22][%emt 00:00:04]} 
3.Bb5 {[%clk 01:41:50][%emt 00:00:02]} 3...a6 {[%clk 01:41:47][%emt 00:00:05]} 
4.Ba4 {[%clk 01:42:17][%emt 00:00:03]} 4...Nf6 {[%clk 01:42:13][%emt 00:00:04]} 
5.O-O {[%clk 01:42:42][%emt 00:00:05]} 5...Be7 {[%clk 01:42:39][%emt 00:00:04]} 
6.Re1 {[%clk 01:43:04][%emt 00:00:08]} 6...b5 {[%clk 01:43:05][%emt 00:00:04]} 
7.Bb3 {[%clk 01:43:32][%emt 00:00:02]} 7...O-O {[%clk 01:43:28][%emt 00:00:08]} 
8.a4 {[%clk 01:44:00][%emt 00:00:01]} 8...Bb7 {[%clk 01:43:53][%emt 00:00:05]} 
9.d3 {[%clk 01:43:10][%emt 00:01:21]} 9...d6 {[%clk 01:44:07][%emt 00:00:16]} 
10.Bd2 {[%clk 01:41:52][%emt 00:01:47]} 10...Qd7 {[%clk 01:43:11][%emt
00:01:26]} 11.h3 {[%clk 01:41:06][%emt 00:01:16]} 11...Nd8 {[%clk 01:42:25][%emt
00:01:16]} 12.axb5 {[%clk 01:40:22][%emt 00:01:14]} 12...axb5 {[%clk
01:39:04][%emt 00:03:50]} 13.Rxa8 {[%clk 01:40:49][%emt 00:00:04]} 13...Bxa8 
{[%clk 01:39:30][%emt 00:00:05]} 14.Nc3 {[%clk 01:41:07][%emt 00:00:11]} 
14...Ne6 {[%clk 01:35:01][%emt 00:04:59]} 15.Bxe6 {[%clk 01:40:25][%emt
00:01:11]} 15...fxe6 {[%clk 01:35:24][%emt 00:00:07]} 16.b4 {[%clk
01:40:54][%emt 00:00:02]} 16...Bb7 {[%clk 01:27:05][%emt 00:08:49]} 17.Qa1 
{[%clk 01:37:31][%emt 00:03:53]} 17...Nh5 {[%clk 01:25:43][%emt 00:01:50]} 
18.Qa2 {[%clk 01:21:00][%emt 00:17:03]} 18...Bf6 {[%clk 01:23:35][%emt
00:02:37]} 19.Ra1 {[%clk 01:14:13][%emt 00:07:19]} 19...h6 {[%clk 01:19:48][%emt
00:04:16]} 20.Qb3 {[%clk 01:08:24][%emt 00:06:19]} 20...Ra8 {[%clk
01:18:09][%emt 00:02:10]} 21.Rxa8+ {[%clk 01:07:18][%emt 00:01:36]} 21...Bxa8 
{[%clk 01:18:37][%emt 00:00:01]} 22.Nxb5 {[%clk 00:52:20][%emt 00:15:28]} 
22...Qxb5 {[%clk 01:17:40][%emt 00:01:27]} 23.Qxe6+ {[%clk 00:52:36][%emt
00:00:13]} 23...Kf8 {[%clk 01:18:00][%emt 00:00:11]} 24.Qc8+ {[%clk
00:53:00][%emt 00:00:05]} 24...Qe8 {[%clk 01:18:27][%emt 00:00:04]} 25.Qxc7 
{[%clk 00:53:26][%emt 00:00:04]} 25...Qd8 {[%clk 01:15:28][%emt 00:03:28]} 
26.Qc4 {[%clk 00:36:42][%emt 00:17:15]} 26...Qd7 {[%clk 01:02:31][%emt
00:13:27]} 27.b5 {[%clk 00:32:31][%emt 00:04:41]} 27...d5 {[%clk 01:00:11][%emt
00:02:49]} 28.Qa2 {[%clk 00:30:22][%emt 00:02:39]} 28...Bb7 {[%clk
00:59:57][%emt 00:00:45]} 29.d4 {[%clk 00:26:45][%emt 00:04:08]} 29...Nf4 
{[%clk 00:54:35][%emt 00:05:51]} 30.dxe5 {[%clk 00:20:13][%emt 00:07:02]} 
30...Ne2+ {[%clk 00:54:47][%emt 00:00:17]} 31.Kh2 {[%clk 00:16:36][%emt
00:04:07]} 31...Be7 {[%clk 00:43:57][%emt 00:11:22]} 32.exd5 {[%clk
00:15:14][%emt 00:01:52]} 32...Bxd5 {[%clk 00:28:30][%emt 00:15:56]} 33.c4 
{[%clk 00:14:47][%emt 00:00:57]} 33...Be4 {[%clk 00:28:38][%emt 00:00:22]} 
34.Bxh6 {[%clk 00:05:39][%emt 00:09:37]} 34...Bxf3 {[%clk 00:24:29][%emt
00:04:41]} 35.gxf3 {[%clk 00:05:08][%emt 00:01:00]} 35...Qd1 {[%clk 00:24:45]
[%emt 00:00:14]} 36.Qa8+ {[%clk 00:05:35] [%emt 00:00:02]} 36...Bd8 {[%clk
00:24:20] [%emt 00:00:56]} 37.Bxg7+ {[%clk 00:06:03] [%emt 00:00:02]} 37...Kxg7 
{[%clk 00:24:39] [%emt 00:00:10]} 38.Qb7+ {[%clk 00:06:29] [%emt 00:00:04]} 
38...Kf8 {[%clk 00:24:58] [%emt 00:00:11]} 39.e6 {[%clk 00:06:58] [%emt
00:00:01]} 39...Qg1# {[%clk 00:25:24] [%emt 00:00:05]} 0-1

[Event "FIDE Grand Swiss 2023"]
[Site "Villa Marina, Douglas, Isle of Man"]
[Date "2023.11.03"]
[Round "9.44"]
[White "Royal, Shreyas"]
[Black "Murzin, Volodar"]
[Result "0-1"]
[WhiteElo "2407"]
[BlackElo "2633"]
[EventDate "2023.10.25"]
[ECO "E70"]
[PlyCount "60"]
[BlackClock "00:13:16"]
[BlackFideId "44155573"]
[TimeControl "40/100 + 20/50 + 15 + 30s/move"]
[WhiteClock "00:27:51"]
[WhiteFideId "448869"]

1.d4 {[%clk 01:40:54][%emt 00:00:06]} 1...Nf6 {[%clk 01:40:52][%emt 00:00:09]} 
2.c4 {[%clk 01:41:17][%emt 00:00:06]} 2...g6 {[%clk 01:41:18][%emt 00:00:03]} 
3.Nc3 {[%clk 01:41:29][%emt 00:00:18]} 3...Bg7 {[%clk 01:41:43][%emt 00:00:06]} 
4.e4 {[%clk 01:41:51][%emt 00:00:08]} 4...O-O {[%clk 01:42:07][%emt 00:00:06]} 
5.Be3 {[%clk 01:42:16][%emt 00:00:04]} 5...d6 {[%clk 01:41:56][%emt 00:00:41]} 
6.h3 {[%clk 01:42:26][%emt 00:00:20]} 6...e5 {[%clk 01:40:42][%emt 00:01:45]} 
7.d5 {[%clk 01:42:50][%emt 00:00:06]} 7...Na6 {[%clk 01:40:56][%emt 00:00:17]} 
8.g4 {[%clk 01:43:06][%emt 00:00:13]} 8...Nc5 {[%clk 01:41:03][%emt 00:00:22]} 
9.f3 {[%clk 01:43:29][%emt 00:00:07]} 9...c6 {[%clk 01:39:36][%emt 00:01:58]} 
10.Qd2 {[%clk 01:42:54][%emt 00:01:05]} 10...cxd5 {[%clk 01:36:37][%emt
00:03:28]} 11.cxd5 {[%clk 01:43:18][%emt 00:00:07]} 11...Ne8 {[%clk
01:29:51][%emt 00:07:16]} 12.h4 {[%clk 01:31:10][%emt 00:12:38]} 12...f5 {[%clk
01:26:37][%emt 00:03:45]} 13.g5 {[%clk 01:31:16][%emt 00:00:23]} 13...fxe4 
{[%clk 01:16:06][%emt 00:11:01]} 14.fxe4 {[%clk 01:30:41][%emt 00:01:04]} 
14...Bg4 {[%clk 01:15:35][%emt 00:01:02]} 15.Be2 {[%clk 01:20:48][%emt
00:10:23]} 15...Bxe2 {[%clk 01:12:11][%emt 00:03:55]} 16.Ngxe2 {[%clk
01:12:36][%emt 00:08:42]} 16...Rc8 {[%clk 01:10:46][%emt 00:01:54]} 17.h5 
{[%clk 01:10:15][%emt 00:02:50]} 17...Rf3 {[%clk 00:53:26][%emt 00:17:50]} 
18.Rh4 {[%clk 00:47:04][%emt 00:23:42]} 18...Bh6 {[%clk 00:42:04][%emt
00:11:52]} 19.Rh2 {[%clk 00:47:28][%emt 00:00:06]} 19...Nf6 {[%clk
00:32:54][%emt 00:09:40]} 20.Bxc5 {[%clk 00:27:33][%emt 00:20:25]} 20...Ng4 
{[%clk 00:32:42][%emt 00:00:43]} 21.gxh6 {[%clk 00:27:47][%emt 00:00:16]} 
21...Nxh2 {[%clk 00:32:58][%emt 00:00:13]} 22.O-O-O {[%clk 00:28:11][%emt
00:00:06]} 22...Nf1 {[%clk 00:31:06][%emt 00:02:22]} 23.Qc2 {[%clk
00:28:17][%emt 00:00:24]} 23...Rxc5 {[%clk 00:31:24][%emt 00:00:12]} 24.Qa4 
{[%clk 00:28:39][%emt 00:00:08]} 24...a5 {[%clk 00:21:50][%emt 00:10:04]} 
25.Kb1 {[%clk 00:28:38][%emt 00:00:31]} 25...g5 {[%clk 00:14:28][%emt 00:07:52]} 
26.Nc1 {[%clk 00:27:51][%emt 00:01:17]} 26...b5 {[%clk 00:12:45][%emt 00:02:12]} 
27.Nxb5 {[%clk 00:27:46][%emt 00:00:36]} 27...Qd7 {[%clk 00:12:17][%emt
00:00:58]} 28.Nc3 {[%clk 00:27:22][%emt 00:00:54]} 28...Rfxc3 {[%clk
00:12:26][%emt 00:00:21]} 29.Qxd7 {[%clk 00:27:31][%emt 00:00:21]} 29...Nd2+ 
{[%clk 00:12:49][%emt 00:00:07]} 30.Rxd2 {[%clk 00:27:53] [%emt 00:00:09]} 
30...Rxc1# {[%clk 00:13:16] [%emt 00:00:02]} 0-1

[Event "FIDE Grand Swiss 2023"]
[Site "Villa Marina, Douglas, Isle of Man"]
[Date "2023.11.03"]
[Round "9.45"]
[White "Donchenko, Alexander"]
[Black "Wagner, Dennis"]
[Result "1/2-1/2"]
[WhiteElo "2676"]
[BlackElo "2589"]
[EventDate "2023.10.25"]
[ECO "A28"]
[PlyCount "65"]
[BlackClock "00:16:30"]
[BlackFideId "24650684"]
[TimeControl "40/100 + 20/50 + 15 + 30s/move"]
[WhiteClock "00:13:14"]
[WhiteFideId "24603295"]

1.c4 {[%clk 01:40:58][%emt 00:00:01]} 1...Nf6 {[%clk 01:40:43][%emt 00:00:17]} 
2.Nc3 {[%clk 01:39:47][%emt 00:01:41]} 2...e5 {[%clk 01:40:33][%emt 00:00:40]} 
3.Nf3 {[%clk 01:39:46][%emt 00:00:31]} 3...Nc6 {[%clk 01:40:55][%emt 00:00:08]} 
4.e4 {[%clk 01:38:07][%emt 00:02:09]} 4...Bb4 {[%clk 01:40:58][%emt 00:00:27]} 
5.d3 {[%clk 01:38:24][%emt 00:00:13]} 5...d6 {[%clk 01:41:02][%emt 00:00:27]} 
6.a3 {[%clk 01:38:26][%emt 00:00:28]} 6...Bc5 {[%clk 01:41:21][%emt 00:00:11]} 
7.b4 {[%clk 01:38:37][%emt 00:00:19]} 7...Bb6 {[%clk 01:41:44][%emt 00:00:06]} 
8.Na4 {[%clk 01:38:51][%emt 00:00:15]} 8...Bg4 {[%clk 01:41:37][%emt 00:00:38]} 
9.Be2 {[%clk 01:38:41][%emt 00:00:40]} 9...Bxf3 {[%clk 01:41:38][%emt 00:00:30]} 
10.Bxf3 {[%clk 01:39:05][%emt 00:00:06]} 10...Bd4 {[%clk 01:42:01][%emt
00:00:07]} 11.Rb1 {[%clk 01:39:15][%emt 00:00:20]} 11...a6 {[%clk 01:41:54][%emt
00:00:37]} 12.Qd2 {[%clk 01:37:15][%emt 00:02:30]} 12...b5 {[%clk 01:41:44][%emt
00:00:40]} 13.Nc3 {[%clk 01:37:26][%emt 00:00:19]} 13...bxc4 {[%clk
01:41:52][%emt 00:00:22]} 14.dxc4 {[%clk 01:37:42][%emt 00:00:13]} 14...Bxc3 
{[%clk 01:42:09][%emt 00:00:13]} 15.Qxc3 {[%clk 01:38:07][%emt 00:00:05]} 
15...Nd4 {[%clk 01:42:34][%emt 00:00:06]} 16.O-O {[%clk 01:35:12][%emt
00:03:24]} 16...O-O {[%clk 01:42:34][%emt 00:00:30]} 17.Re1 {[%clk
01:32:40][%emt 00:03:02]} 17...c5 {[%clk 01:42:51][%emt 00:00:14]} 18.Bd1 
{[%clk 01:25:45][%emt 00:07:25]} 18...Nd7 {[%clk 01:35:26][%emt 00:07:55]} 
19.Be3 {[%clk 01:11:29][%emt 00:14:45]} 19...Qc7 {[%clk 01:32:56][%emt
00:03:01]} 20.Qd3 {[%clk 01:09:02][%emt 00:02:57]} 20...h6 {[%clk 01:01:41][%emt
00:31:45]} 21.Bg4 {[%clk 01:03:57][%emt 00:05:35]} 21...Nf6 {[%clk
01:01:43][%emt 00:00:27]} 22.Bh3 {[%clk 01:03:54][%emt 00:00:33]} 22...Rfe8 
{[%clk 00:50:37][%emt 00:11:37]} 23.Rb2 {[%clk 00:48:09] [%emt 00:16:15]} 
23...Nh5 {[%clk 00:47:06] [%emt 00:04:00]} 24.Bg4 {[%clk 00:41:08] [%emt
00:07:31]} 24...Nf6 {[%clk 00:42:24] [%emt 00:05:13]} 25.Bh3 {[%clk
00:48:09][%emt 00:16:15]} 25...Nh5 {[%clk 00:47:06][%emt 00:04:00]} 26.Bg4 
{[%clk 00:41:08][%emt 00:07:31]} 26...Nf6 {[%clk 00:42:24][%emt 00:05:13]} 
27.Bf5 {[%clk 00:35:48][%emt 00:00:18]} 27...d5 {[%clk 00:18:12][%emt 00:25:31]} 
28.Bxd4 {[%clk 00:24:44][%emt 00:11:35]} 28...dxe4 {[%clk 00:18:25][%emt
00:00:17]} 29.Bxe4 {[%clk 00:24:32][%emt 00:00:42]} 29...exd4 {[%clk
00:18:40][%emt 00:00:15]} 30.Rbe2 {[%clk 00:19:44][%emt 00:05:17]} 30...Nxe4 
{[%clk 00:19:04][%emt 00:00:06]} 31.Rxe4 {[%clk 00:20:09][%emt 00:00:05]} 
31...Rxe4 {[%clk 00:19:26][%emt 00:00:08]} 32.Rxe4 {[%clk 00:20:18][%emt
00:00:22]} 32...Rd8 {[%clk 00:17:36][%emt 00:02:20]} 33.Re1 {[%clk
00:13:14][%emt 00:07:34]} 1/2-1/2